Cogmind - Beta 15 @@@ ROGUE MODE // 2025.09.04 @ 17:24:02 Player: odium reigns Result: Destroyed by Y-64 Sentinel with KE Penetrator Performance ------------- Evolutions (1) 500 Regions Visited (5) 1000 Robots Destroyed (25) 125 Value Destroyed (459) 459 Prototype IDs (2) 40 Alien Tech Used (0) 0 Bonus (810) 810 TOTAL SCORE: 2934 Bonus ------- Follower Combat Kills 210 Met Imprinter 300 Was Imprinted 300 Cogmind --------- Core Integrity 0/400 Matter 300/300 Energy 40/100 System Corruption 0% Temperature Cool (9) Movement Core (1400) Ox27 Location -6/Proximity Caves Parts ------- > --- POWER (1) -------- (None) > --- PROPULSION (4) --- (None) > --- UTILITY (2) ------ Huge Storage Unit Hacking Drone Bay (1/1) > --- WEAPON (2) ------- Makeshift Spear > --- INVENTORY (25) --- Light Ion Engine Makeshift Power Source Improved Heat Sink Large Storage Unit Medium Matter Pod (100) Medium Matter Pod (100) Improved Signal Interpreter Improved Targeting Computer Improved Power Shielding Improved Light Armor Plating Makeshift System Shield Phasing AFG Arc Projector Makeshift Laser Makeshift Shrapnel Gun Gauss Cannon Mini Grenade Launcher Improved Datajack RU-N14's Throwing Claymores (3) RU-N14's Throwing Claymores (3) RU-N14's Throwing Claymores (4) Makeshift Axe Makeshift Spear CR-A16's Pointy Stick GAL Module Peak State ------------ > --- POWER ------------ Light Fission Core > --- PROPULSION ------- Medium Treads Aluminum Leg Flexi-carbon Leg Flight Unit > --- UTILITY ---------- Huge Storage Unit Hacking Drone Bay > --- WEAPON ----------- RU-N14's Throwing Claymores Makeshift Spear > --- INVENTORY -------- Light Ion Engine Makeshift Power Source Improved Heat Sink Large Storage Unit Medium Matter Pod Medium Matter Pod Improved Signal Interpreter Improved Targeting Computer Improved Power Shielding Improved Light Armor Plating Makeshift System Shield Phasing AFG Arc Projector Makeshift Laser Makeshift Shrapnel Gun Gauss Cannon Mini Grenade Launcher Improved Datajack RU-N14's Throwing Claymores RU-N14's Throwing Claymores RU-N14's Throwing Claymores Makeshift Axe Makeshift Spear CR-A16's Pointy Stick GAL Module [Rating: 47] Favorites ----------- Power Light Fission Core Engine Light Ion Engine Power Core Light Fission Core Propulsion Aluminum Leg Treads Light Treads Leg Aluminum Leg Hover Unit Airjet Flight Unit Flight Unit Utility Huge Storage Unit Device Hacking Drone Bay Storage Huge Storage Unit Protection Improved Power Shielding Weapon Maul Energy Gun EM Pulse Gun Launcher Mini Grenade Launcher Special Weapon RU-N14's Throwing Claymores Impact Weapon Maul Piercing Weapon Makeshift Spear Build | -11 -10 -9 -9 -7 -6 ------- Run | Yrd Mat Mat Min Zio Pro Slots Evolved 2 | . . 2 . . . Power . | . . . . . . Propulsion 2 | . . 2 . . . Utility . | . . . . . . Weapon . | . . . . . . Parts Attached 29 | 7 5 8 3 5 1 Power 3 | 1 1 . . 1 . Engine 2 | 1 1 . . . . Core 1 | . . . . 1 . Reactor . | . . . . . . Propulsion 12 | 2 . 6 2 1 1 Treads 3 | 2 . . . . 1 Leg 4 | . . 2 1 1 . Wheel . | . . . . . . Hover 4 | . . 4 . . . Flight 1 | . . . 1 . . Utility 7 | 2 1 2 1 1 . Device 2 | 1 . . . 1 . Storage 4 | 1 1 1 1 . . Processor . | . . . . . . Hackware . | . . . . . . Protection 1 | . . 1 . . . Artifact . | . . . . . . Weapon 7 | 2 3 . . 2 . Energy Gun 2 | 2 . . . . . Energy Cannon . | . . . . . . Ballistic Gun . | . . . . . . Ballistic Cannon . | . . . . . . Launcher 1 | . 1 . . . . Special Weapon 1 | . . . . 1 . Impact Weapon 2 | . 2 . . . . Slashing Weapon . | . . . . . . Piercing Weapon 1 | . . . . 1 . Special Melee Weapon . | . . . . . . Unidentified Prototypes 2 | . . . . 2 . Corrupted Parts 1 | . . . 1 . . System Corruption 4 | . . . 4 . . Parts Lost 11 | . 1 . 5 . 5 Power 2 | . . . 1 . 1 Propulsion 8 | . . . 4 . 4 Utility 1 | . 1 . . . . Weapon . | . . . . . . Highest Loss Streak 5 | . 1 . 4 . 5 To Critical Strikes 1 | . . . 1 . . Average Backups 19 | 4 11 13 15 20 24 Power 2 | 1 1 2 2 3 2 Propulsion . | 1 2 1 . . . Utility 7 | . 2 4 6 7 9 Weapon 8 | . 5 6 6 8 11 Tool/Special . | . . . . . . Unused Backups 34 | . 2 . . 9 23 Power 5 | . 1 . . 1 3 Propulsion . | . . . . . . Utility 11 | . . . . 3 8 Weapon 16 | . 1 . . 4 11 Tool/Special 2 | . . . . 1 1 Average Slot Usage (%) 77 | . 97 89 73 74 88 Engine 2 | . 14 11 11 . . Core 4 | . . . . 4 10 Treads 2 | . 28 13 . . 2 Leg 13 | . . 13 9 15 20 Flight 9 | . . . 3 11 10 Device 6 | . 11 . . 6 11 Storage 11 | . 14 11 11 11 11 Protection 4 | . . 3 11 4 . Special Weapon 3 | . . . . 3 11 Impact Weapon 15 | . 21 22 22 15 . Piercing Weapon 3 | . . . . 3 11 Peak Build Rating 47 | 9 13 23 23 42 47 Average Rating 23 | 5 11 15 13 25 42 On Entrance 16 | . 9 10 23 12 42 Naked Turns . | . . . . . . Heaviest Build 99 | 13 30 31 91 99 98 Greatest Support 40 | 40 40 32 32 30 30 Greatest Overweight (x) 32 | . . 3 9 9 32 Average Overweight (x) 3 | . . . 4 5 3 Largest Inventory Capacity 25 | 8 15 15 25 25 25 Average Capacity 23 | 7 13 15 23 25 25 Most Carried 25 | 6 15 15 16 25 25 Average Carried 19 | 3 11 13 15 21 25 Final Capacity 25 | 8 15 15 25 25 25 Final Carried 25 | 5 15 15 15 25 25 Class Distribution -------------------- 100% | Mutant Dominant Class ---------------- Mutant | -10/Materials Mutant | -9/Materials Mutant | -9/Mines Mutant | -7/Zion Mutant | -6/Proximity Caves Resources | -11 -10 -9 -9 -7 -6 ----------- Run | Yrd Mat Mat Min Zio Pro Matter Collected 769 | 270 70 90 113 176 50 Remotely . | . . . . . . Salvage Created 751 | 185 262 . 66 . 238 Parts 32 | 11 5 . 9 . 7 Haulers Intercepted 1 | . 1 . . . . Recyclers Shooed . | . . . . . . Parts Field Recycled . | . . . . . . Retrieved Matter . | . . . . . . Parts Self-Destructed 17 | . . . . . 17 Prevented 2 | . . . . . 2 Kills | -11 -10 -9 -9 -7 -6 ------- Run | Yrd Mat Mat Min Zio Pro Combat Hostiles Destroyed 14 | . 5 . 4 . 5 Melee 4 | . 1 . 3 . . Cannons 1 | . . . . . 1 AOE 4 | . . . . . 4 Classes Destroyed 8 | 3 4 . . . 1 Worker 3 | 1 2 . . . . Tunneler 4 | 3 . . 1 . . Hauler 1 | . 1 . . . . Recycler 2 | 1 1 . . . . Watcher 1 | . 1 . . . . Swarmer 7 | . 3 . 4 . . Grunt 7 | . 2 . . . 5 Samaritan 1 | . . . . . 1 Best Kill Streak 6 | 2 6 . 3 . 5 Combat Bots Only 5 | . 3 . 2 . 5 Max Kills in Single Turn 3 | 1 1 . 1 . 3 Gunslinging . | . . . . . . Exploded 2 | . . . . . 2 Melee 1 | . 1 . 1 . . Uniques/NPCs Destroyed . | . . . . . . Combat | -11 -10 -9 -9 -7 -6 -------- Run | Yrd Mat Mat Min Zio Pro Hostile Shots Fired 167 | . 33 12 76 . 46 Missed 37 | . 6 6 17 . 8 Hits 130 | . 27 6 59 . 38 Projectile 130 | . 27 6 59 . 38 Critical Strikes 3 | . . . 2 . 1 Damage Taken 1563 | . 218 94 469 . 782 Core 428 | . 28 8 145 . 247 Absorbed by Shields . | . . . . . . Redirected to Shielding 40 | . . 4 36 . . Core Remaining (%) 94 | 100 88 . . . . Volleys Fired 18 | 13 . . . . 5 Largest 2 | 2 . . . . 1 Hottest 90 | 90 . . . . . Shots Fired 31 | 26 . . . . 5 Gun 26 | 26 . . . . . Cannon . | . . . . . . Launcher . | . . . . . . Special 5 | . . . . . 5 Kinetic . | . . . . . . Thermal 13 | 13 . . . . . Explosive 5 | . . . . . 5 Electromagnetic 13 | 13 . . . . . Robot Hit Streak 8 | 8 . . . . 3 Robot Miss Streak 3 | 3 . . . . . Penetration Max . | . . . . . . Secondary Targets . | . . . . . . Shots Hit Robots 37 | 11 16 . 6 . 4 Core Hits 19 | 6 2 . 3 . 8 Critical Kills 1 | . 1 . . . . Critical Parts Destroyed 7 | . 6 . 1 . . Critical Strikes 10 | 1 7 . 1 . 1 Burn 1 | 1 . . . . . Smash 8 | . 7 . 1 . . Impale 1 | . . . . . 1 Melee Attacks 40 | . 21 1 16 . 2 Impact 38 | . 21 1 16 . . Slashing . | . . . . . . Piercing 2 | . . . . . 2 Sneak Attacks 8 | . 5 . 2 . 1 Combat Hostiles 1 | . 1 . . . . Follow-up Attacks 4 | . 3 . 1 . . Damage Inflicted 2376 | 179 830 . 332 . 1035 Guns 179 | 179 . . . . . Cannons . | . . . . . . Explosions 848 | . . . . . 848 Melee 1230 | . 830 . 332 . 68 Ramming . | . . . . . . Kinetic . | . . . . . . Thermal 101 | 101 . . . . . Explosive 848 | . . . . . 848 Electromagnetic 78 | 78 . . . . . Impact 1162 | . 830 . 332 . . Slashing 119 | . . . . . 119 Piercing 68 | . . . . . 68 Highest Corruption 4 | . . . 4 4 . Average Corruption 4 | . . . 4 4 . Corruption Purged . | . . . . . . Corruption Blocked . | . . . . . . Effects 24 | . . . 13 11 . Message Errors 9 | . . . 5 4 . Matter Fused 4 | . . . 1 3 . Heat Flow Errors 3 | . . . 2 1 . Energy Discharges 5 | . . . 2 3 . Parts Fused 1 | . . . 1 . . Data Loss (minor) 2 | . . . 2 . . Overload Shots . | . . . . . . Overflow Damage 742 | . 446 . 145 . 151 Projectiles . | . . . . . . Explosions 46 | . . . . . 46 Melee 696 | . 446 . 145 . 105 Knockbacks 2 | . 1 . 1 . . Impact 2 | . 1 . 1 . . Kinetic . | . . . . . . Secondary . | . . . . . . Self-Inflicted Damage . | . . . . . . Shots . | . . . . . . Rammed . | . . . . . . Targets Rammed . | . . . . . . Kicked . | . . . . . . Crushed . | . . . . . . Highest Temperature 176 | 150 . . 176 82 16 Average Temperature 56 | 53 . . 81 54 10 Received Heat Transfer 285 | . 24 . . . 261 Siege Activations . | . . . . . . Martial Activations . | . . . . . . Shielding Activations . | . . . . . . Robots Disrupted . | . . . . . . Combat Hostiles . | . . . . . . Robots Corrupted 7 | . 6 . 1 . . Combat Hostiles 5 | . 4 . 1 . . Parts Fried 13 | . 9 . 4 . . Impact Corruptions 22 | . 18 . 4 . . Robots Melted . | . . . . . . Combat Hostiles . | . . . . . . Parts Melted 1 | 1 . . . . . Heat Transferred 370 | 370 . . . . . Parts Sabotaged . | . . . . . . Parts Stolen . | . . . . . . Parts Stripped . | . . . . . . Power Chain Reactions . | . . . . . . Alert | -11 -10 -9 -9 -7 -6 ------- Run | Yrd Mat Mat Min Zio Pro Maximum Alert Level . | . . . . . . Low Security (%) 100 | 100 100 100 100 . . Level 1 . | . . . . . . Level 2 . | . . . . . . Level 3 . | . . . . . . Level 4 . | . . . . . . Level 5 . | . . . . . . High Security . | . . . . . . Max Security . | . . . . . . Peak Influence 92 | 10 92 30 50 . . Initial 25 | . . 25 3 . . Average 10 | 2 19 6 6 . . Influence Increases 689 | 25 186 14 95 . 369 Destroy 0b10 Robot/C 440 | . 100 . 80 . 260 Destroy 0b10 Robot/NC 55 | 25 25 . 5 . . Destroy Leader 54 | . 24 . 10 . 20 Allied During Kill 59 | . . . . . 59 Successful Hack 21 | . 7 14 . . . Disable Machine 15 | . 15 . . . . Lose Combat Pursuer 45 | . 15 . . . 30 Influence Decreases 572 | 25 126 65 104 . 252 Entered New Map 41 | . . 35 6 . . Time Decay 404 | 25 119 30 68 . 162 Lost Part 87 | . 7 . 30 . 50 Lost Ally 40 | . . . . . 40 Squads Dispatched 3 | . 1 1 . . 1 Investigation 1 | . 1 . . . . Extermination . | . . . . . . Reinforcement 1 | . . 1 . . . Assault 1 | . . . . . 1 Garrison . | . . . . . . Intercept . | . . . . . . Searches Triggered . | . . . . . . Construction Impeded . | . . . . . . Haulers Reinforced . | . . . . . . Active Scanning Responses . | . . . . . . Cargo Convoy Interrupts . | . . . . . . Stealth | -11 -10 -9 -9 -7 -6 --------- Run | Yrd Mat Mat Min Zio Pro Distress Signals 2 | . . 2 . . . Communications Jammed . | . . . . . . Distress Signals . | . . . . . . Times Spotted 38 | . 6 9 8 . 15 Peak Tracking Total 9 | . 3 9 4 . 9 Tactical Retreats 3 | . 1 . . . 2 Traps | -11 -10 -9 -9 -7 -6 ------- Run | Yrd Mat Mat Min Zio Pro Traps Triggered 1 | . . 1 . . . Indirectly . | . . . . . . Trap Hack Attempts . | . . . . . . Triggered . | . . . . . . Disarmed . | . . . . . . Reprogrammed . | . . . . . . Reused . | . . . . . . Traps Extracted . | . . . . . . Installed . | . . . . . . Triggered . | . . . . . . Machines | -11 -10 -9 -9 -7 -6 ---------- Run | Yrd Mat Mat Min Zio Pro Machines Disabled 1 | . 1 . . . . Max in Single Turn 1 | . 1 . . . . Machines Repaired . | . . . . . . Machines Dismantled . | . . . . . . Machines Sabotaged . | . . . . . . Overloaded Fab Kills . | . . . . . . Hacking | -11 -10 -9 -9 -7 -6 --------- Run | Yrd Mat Mat Min Zio Pro Machines Accessed 5 | . 1 4 . . . Terminals 4 | . 1 3 . . . Fabricators . | . . . . . . Repair Stations . | . . . . . . Recycling Units . | . . . . . . Scanalyzers 1 | . . 1 . . . Garrison Access . | . . . . . . Total Hacks 15 | . 3 12 . . . Successful 11 | . 2 9 . . . Failed 4 | . 1 3 . . . Catastrophic . | . . . . . . Database Lockouts . | . . . . . . Manual . | . . . . . . Terminals 13 | . 3 10 . . . Fabricators . | . . . . . . Repair Stations . | . . . . . . Recycling Units . | . . . . . . Scanalyzers 2 | . . 2 . . . Garrison Access . | . . . . . . Terminal Hacks 9 | . 2 7 . . . Record 1 | . 1 . . . . Alert Level 2 | . . 2 . . . Locate Traps 2 | . . 2 . . . Dispatch Records 1 | . . 1 . . . Hauler Manifests 1 | . 1 . . . . Zone Layout 2 | . . 2 . . . Fabricator Hacks . | . . . . . . Repair Station Hacks . | . . . . . . Recycling Unit Hacks . | . . . . . . Scanalyzer 2 | . . 2 . . . Insert Component 1 | . . 1 . . . Analyze 1 | . . 1 . . . Garrison Access Hacks . | . . . . . . Unauthorized Hacks . | . . . . . . Terminals . | . . . . . . Fabricators . | . . . . . . Repair Stations . | . . . . . . Recycling Units . | . . . . . . Scanalyzers . | . . . . . . Garrison Access . | . . . . . . Data Cores Recovered . | . . . . . . Used . | . . . . . . Hacking Detections 2 | . . 2 . . . Full Trace Events . | . . . . . . Feedback Events . | . . . . . . Feedback Blocked . | . . . . . . Robot Schematics Acquired . | . . . . . . Robots Built . | . . . . . . Authchips . | . . . . . . Time . | . . . . . . Total Robot Build Rating . | . . . . . . Part Schematics Acquired 1 | . . 1 . . . Parts Built . | . . . . . . Authchips . | . . . . . . Time . | . . . . . . Total Part Build Rating . | . . . . . . Parts Repaired . | . . . . . . Time . | . . . . . . Parts Recycled . | . . . . . . Recycled Matter . | . . . . . . Retrieved Matter . | . . . . . . Retrieved Components . | . . . . . . Parts Scanalyzed 1 | . . 1 . . . Part Schematics Acquired 1 | . . 1 . . . Parts Damaged . | . . . . . . Bothacking | -11 -10 -9 -9 -7 -6 ------------ Run | Yrd Mat Mat Min Zio Pro Used RIF Installer . | . . . . . . Robots Hacked . | . . . . . . Non-combat . | . . . . . . Combat . | . . . . . . Robot Hacks Applied . | . . . . . . Relay Couplers Released . | . . . . . . Fabnet Peak Effective % . | . . . . . . Robots Rewired . | . . . . . . Allies Hacked 1 | . . . . . 1 Hacks Repelled . | . . . . . . Allies | -11 -10 -9 -9 -7 -6 -------- Run | Yrd Mat Mat Min Zio Pro Total Allies 4 | . . . . 4 . Largest Group 4 | . . . . 4 4 Highest-Rated Group 155 | . . . . 155 155 Highest-Rated Ally 42 | . . . . 42 42 Total Orders . | . . . . . . Ally Attacks 30 | . . . . . 30 Total Damage 532 | . . . . . 532 Kills 9 | . . . . . 9 Allies Corrupted . | . . . . . . Allies Melted . | . . . . . . Intel | -11 -10 -9 -9 -7 -6 ------- Run | Yrd Mat Mat Min Zio Pro Active Infowar (turns) 438 | 23 415 . . . . Terrain 438 | 23 415 . . . . Robot Analysis Total . | . . . . . . Derelict Logs Recovered 1 | . . . . 1 . Drone Launches . | . . . . . . Drone Recoveries . | . . . . . . Exploration | -11 -10 -9 -9 -7 -6 ------------- Run | Yrd Mat Mat Min Zio Pro Turns Passed 6492 | 121 501 191 553 4650 476 Spaces Moved 1714 | 46 260 168 142 968 130 Core 10 | 9 . . . . 1 Treads 301 | 37 260 . . . 4 Legs 1212 | . . 57 62 968 125 Wheels . | . . . . . . Hover 191 | . . 111 80 . . Flight . | . . . . . . Fastest Speed 48 | 50 160 48 48 330 330 Average Speed 363 | 138 160 101 359 477 342 Slowest Speed 1650 | 160 160 260 750 750 1650 Overloaded Moves . | . . . . . . Propulsion Burnouts . | . . . . . . Robots Hopped 1 | . . . . 1 . Potential Cave-ins . | . . . . . . Cave-ins Triggered . | . . . . . . Exploration Rate (%) 37 | 5 43 27 38 90 24 Regions Visited 5 Branch Regions 3 Pre-discovered Areas 2 | . . . . 2 . Known Exits Taken . | . . . . . . Unknown Exits Taken 5 | 1 1 1 1 1 . Scrap Searched 4 | . . . 1 3 . Spaces Dug . | . . . . . . Terrain Destroyed 30 | . . . . . 30 Melee . | . . . . . . Projectile 2 | . . . . . 2 AOE 28 | . . . . . 28 Terrain Rammed . | . . . . . . Walls Destroyed . | . . . . . . Machines Disabled . | . . . . . . Actions | -11 -10 -9 -9 -7 -6 --------- Run | Yrd Mat Mat Min Zio Pro Total 1893 | 77 309 188 160 1006 153 Wait 19 | . 6 . . . 13 Move 1707 | 45 259 167 141 965 130 Hop 1 | . . . . 1 . Pick Up 57 | 12 15 5 2 22 1 Fast Attach 7 | . . 3 . 3 1 Attach 15 | 7 . 6 2 . . Detach 1 | . . 1 . . . Swap 8 | . 5 . 1 2 . Drop 25 | . 6 5 . 13 1 Fire 18 | 13 . . . . 5 Melee 35 | . 18 1 14 . 2 Ram . | . . . . . . Kick . | . . . . . . Crush . | . . . . . . Escape Stasis . | . . . . . . Rewire . | . . . . . . Trap . | . . . . . . Miscellaneous . | . . . . . . Route ------- -11/Scrapyard -10/Materials (discovered 2 exits: *Mat / [*Sub]) -9/Materials (discovered 2 exits: [*Min x2]) -9/Mines -7/Zion -6/Proximity Caves History --------- Turn | Location | Event 69 | -11/Scrapyard | Discovered new exit (range 13) 122 | -11/Scrapyard | Entered Materials 123 | -10/Materials | Met a group of wandering Federalists 322 | -10/Materials | Build established: Mutant 428 | -10/Materials | Discovered new exit (range 3) 509 | -10/Materials | Discovered new exit (range 9) 623 | -10/Materials | Entered another Materials area 623 | -9/Materials | Evolved 2 slots: Propulsion x2 762 | -9/Materials | Discovered new exit (range 16) 808 | -9/Materials | Discovered new exit (range 14) 814 | -9/Materials | Entered Mines 927 | -9/Mines | Lost 4 parts (4n) 1316 | -9/Mines | A Derelict revealed a hidden shortcut to a safe place 1367 | -9/Mines | Entered Zion 1872 | -7/Zion | System corruption cleaned by Quarantine Array 2504 | -7/Zion | Found CR-A16's Pointy Stick 2683 | -7/Zion | Learned location of Data Miner (-6) 3091 | -7/Zion | Given the Hacking Drone Bay 3132 | -7/Zion | Found Prototype Device 3153 | -7/Zion | Identified Hacking Drone Bay 4369 | -7/Zion | Found GAL Module 4478 | -7/Zion | Learned location of Quarantine (-3) 4565 | -7/Zion | Found Prototype Special Weapon 4566 | -7/Zion | Identified RU-N14's Throwing Claymores 4578 | -7/Zion | Found RU-N14's Throwing Claymores 4582 | -7/Zion | Found RU-N14's Throwing Claymores 4587 | -7/Zion | Found RU-N14's Throwing Claymores 5082 | -7/Zion | Found Prototype Device 5238 | -7/Zion | Met Imprinter 5334 | -7/Zion | Imprinted 5337 | -7/Zion | Declared Zion's savior 5984 | -7/Zion | Discovered new exit (range 10) 6017 | -7/Zion | Entered Proximity Caves 6017 | -6/Proximity Caves | Accompanied by 4 allies 6339 | -6/Proximity Caves | P-60 Hacker assimilated allied BR-TMK(M) 6444 | -6/Proximity Caves | Attracted the attention of an 0b10 outpost 6476 | -6/Proximity Caves | Core integrity fell below 50% 6489 | -6/Proximity Caves | Core integrity fell below 20% 6493 | -6/Proximity Caves | Lost 3 allies 6493 | -6/Proximity Caves | Destroyed by Y-64 Sentinel with KE Penetrator Last Messages --------------- Destroyed Carbon-fiber Leg. G-50 Soldier destroyed. Flight Unit destroyed. Destroyed Hvy. Laser. Destroyed Adv. Heat Sink. G-50 Soldier destroyed. Hvy. Laser fries itself beyond repair. Penetrated by Slug. Carbon-fiber Leg fries itself beyond repair. Penetrated by Slug. Hvy. Laser fries itself beyond repair. Penetrated by Slug. Med. Treads destroyed. Penetrated by Slug. Lgt. Fission Core destroyed. Slug penetrates Wall. Lgt. Angular Momentum Engine fries itself beyond repair. Penetrated by Slug. RU-N14's Throwing Claymores expended. Penetrated by Slug. Map ----- +----------------------------------------------------+ | ?????????????????????????????????????????????????? | | ?????????????????????????????????????????????????? | | ?????????????????????????????????????????????????? | | ?????????????????????????????????????????????????? | | ?????????????????????????????????????????????????? | | ?????????????????????????????????????????????????? | | ?????????????????????????????????????????????????? | | ?????????????????????????????????????????????????? | | ?????????????????????????????????????????????????? | | ?????????????????????????????????????????????????? | | ?##???????????????####???????????????????????????? | | ????????????????# ????????????????????????????? | | ????? ??????##???# ????????????????????????????? | | ?????? ?????# ##?# #????????????????????????????? | | ??????? ???# #?# ######??##???????????????????? | | ???????? ### ### ;# ### ###?????????????????? | | ????????? ## ##????????????????? | | ??#####????? ##???????????????? | | ### ##??????# ##??????????????? | | # #####??# #??????????????? | | # ## #### #;???? #??????????????? | | %[ ## "%"## ;#### #??????????????? | | % #### ##?????????????? | | *##??# =* ## #??????????? | | ###### %[%! ????????? | | # #?# *@= ????????? | | ##### ### #######%%g ##??????????? | | ????## #??????? %Y ##???????????? | | ?????## ##??????? ##????????????? | | ??????# ##??????? ####?????????????? | | ??????# #???????? ???????????????? | | ??????## #??????? # #?????????????? | | ???????## #???????"# ????????????? | | ????????### #??????### #???????????? | | ??????????#####???????? ##???????????? | | ???????????????????????# #????????????? | | ???????????????????????# ##????????????? | | ??????????????????????? % #??????????????? | | ??????????????????????? ????????????????? | | ???????????????????????# ???????????????????? | | ????????????????????????## ?????????????????????? | | ?????????????????????????????????????????????????? | | ?????????????????????????????????????????????????? | | ?????????????????????????????????????????????????? | | ?????????????????????????????????????????????????? | | ?????????????????????????????????????????????????? | | ?????????????????????????????????????????????????? | | ?????????????????????????????????????????????????? | | ?????????????????????????????????????????????????? | | ?????????????????????????????????????????????????? | +----------------------------------------------------+ Best States ------------- Heat Dissipation 28 Energy Generation 18 Energy Capacity 160 Matter Stores 300 Matter Capacity 300 Sight Range 16 Terrain Scan Range 16 Terrain Scan Density 10 Power Shielding 66 Evasion (%) 55 Recoil Reduction 2 Item Schematics ----------------- Airjet | -9/Materials | Scanalyzed Robot Schematics ------------------ None Fabricated ------------ Nothing Repaired ---------- Nothing Alien Tech Used ----------------- None Achievements -------------- None Challenges ------------ None Game ------ Seed IntegratedIntegratedBeacon Manual? 0 Play Time 00:24:03 Cumulative 42.0 hours Start 2025.09.04 @ 17:01:21 End 2025.09.04 @ 17:24:02 Sessions 1 Manual Loads 0 Difficulty Rogue Special Mode None Game No. 29 Rogue 29 Adventurer 0 Explorer 0 Win Type - Total 0 Types 0/0/0/0/0/0/0/0/0/0 Lore% 19 Gallery% 37 Achievement% 32 Wizard Run 0 Options --------- Layout 0 ASCII 0 Keyboard 0 Movement Arrows Keybinds 0 Fullscreen 1 Font 12/Smallcaps Map View 38x28 Zoom Use 96% Tactical HUD 0 Map Filters NONE Filters NONE Steam SD RUN: 5c664f78-0adb-4ba4-9346-112e04d07bca